Cogmind - Beta 16 *** ADVENTURER MODE // 2026.01.25 @ 01:59:19 Player: void Result: Smashed by cave-in Performance ------------- Evolutions (0) 0 Regions Visited (1) 200 Robots Destroyed (20) 100 Value Destroyed (269) 269 Prototype IDs (0) 0 Alien Tech Used (0) 0 Bonus (0) 0 TOTAL SCORE: 569 Bonus ------- None Cogmind --------- Core Integrity 0/250 Matter 268/300 Energy 161/250 System Corruption 2% Temperature Cool (35) Movement Walking (120) Location -10/Materials Parts ------- > --- POWER (1) -------- Ion Engine > --- PROPULSION (2) --- Aluminum Leg Aluminum Leg > --- UTILITY (2) ------ Small Storage Unit > --- WEAPON (2) ------- Medium Laser Mining Laser > --- INVENTORY (8) ---- Ion Engine Improved Heat Sink Medium Storage Unit Large Storage Unit Sensor Array Improved Terrain Scanner Seismic Detector Medium Laser Peak State ------------ > --- POWER ------------ Ion Engine > --- PROPULSION ------- Aluminum Leg Aluminum Leg > --- UTILITY ---------- Small Storage Unit Seismic Detector > --- WEAPON ----------- Medium Laser Medium Laser > --- INVENTORY -------- Ion Engine Improved Heat Sink Medium Storage Unit Large Storage Unit Improved Terrain Scanner Mining Laser [Rating: 8] Favorites ----------- Power Ion Engine Engine Ion Engine Propulsion Aluminum Leg Treads Light Treads Leg Aluminum Leg Utility Small Storage Unit Device Seismic Detector Storage Small Storage Unit Weapon Medium Laser Energy Gun Medium Laser Special Weapon Mining Laser Build | -11 -10 ------- Run | Yrd Mat Slots Evolved . | . . Power . | . . Propulsion . | . . Utility . | . . Weapon . | . . Parts Attached 11 | 8 3 Power 2 | 1 1 Engine 2 | 1 1 Core . | . . Reactor . | . . Propulsion 3 | 3 . Treads 1 | 1 . Leg 2 | 2 . Wheel . | . . Hover . | . . Flight . | . . Utility 3 | 2 1 Device 2 | 1 1 Storage 1 | 1 . Processor . | . . Hackware . | . . Protection . | . . Artifact . | . . Weapon 3 | 2 1 Energy Gun 2 | 2 . Energy Cannon . | . . Ballistic Gun . | . . Ballistic Cannon . | . . Launcher . | . . Special Weapon 1 | . 1 Impact Weapon . | . . Slashing Weapon . | . . Piercing Weapon . | . . Special Melee Weapon . | . . Unidentified Prototypes . | . . Parts Lost 1 | . 1 Power . | . . Propulsion . | . . Utility 1 | . 1 Weapon . | . . Highest Loss Streak 1 | . 1 To Critical Strikes . | . . Average Backups 4 | 1 5 Power . | . 1 Propulsion . | . . Utility 2 | . 3 Weapon . | . 1 Tool/Special . | . . Unused Backups 6 | . 6 Power 1 | . 1 Propulsion . | . . Utility 5 | . 5 Weapon . | . . Tool/Special . | . . Average Slot Usage (%) 100 | . 100 Engine 14 | . 14 Leg 28 | . 28 Device 14 | . 14 Storage 14 | . 14 Energy Gun 25 | . 25 Special Weapon 2 | . 2 Peak Build Rating 8 | 7 8 Average Rating 7 | 6 7 On Entrance 3 | . 7 Avg Prop Armor Cover (%) 9 | 9 . Naked Turns . | . . Heaviest Build 15 | 15 15 Greatest Support 20 | 20 20 Greatest Overweight (x) 4 | 4 . Average Overweight (x) . | 1 . Largest Inventory Capacity 8 | 8 8 Average Capacity 7 | 7 8 Most Carried 8 | 3 8 Average Carried 4 | 1 5 Final Capacity 8 | 8 8 Final Carried 8 | 3 8 Class Distribution -------------------- 100% | Mutant Dominant Class ---------------- Mutant | -10/Materials Resources | -11 -10 ----------- Run | Yrd Mat Matter Collected 323 | 280 43 Remotely . | . . Salvage Created 506 | 255 251 Parts 26 | 13 13 Haulers Intercepted . | . . Recyclers Shooed . | . . Parts Field Recycled . | . . Retrieved Matter . | . . Parts Self-Destructed . | . . Prevented . | . . Parts Restored . | . . Kills | -11 -10 ------- Run | Yrd Mat Combat Hostiles Destroyed 9 | . 9 Guns 9 | . 9 Classes Destroyed 5 | 2 3 Tunneler 8 | 8 . Recycler 1 | 1 . Watcher 2 | . 2 Swarmer 6 | . 6 Grunt 3 | . 3 Best Kill Streak 4 | 3 4 Combat Bots Only 4 | . 4 Max Kills in Single Turn 2 | 1 2 Gunslinging . | . . Exploded . | . . Melee . | . . Uniques/NPCs Destroyed . | . . Combat | -11 -10 -------- Run | Yrd Mat Hostile Shots Fired 52 | . 52 Missed 17 | . 17 Hits 35 | . 35 Projectile 35 | . 35 Damage Taken 566 | . 566 Core 266 | . 266 Absorbed by Shields . | . . Ignored by Resistances 82 | . 82 Core Remaining (%) 100 | 100 . Volleys Fired 47 | 19 28 Largest 2 | 2 2 Hottest 100 | 100 100 Shots Fired 89 | 38 51 Gun 84 | 38 46 Cannon . | . . Launcher . | . . Special 5 | . 5 Kinetic . | . . Thermal 89 | 38 51 Explosive . | . . Electromagnetic . | . . Robot Hit Streak 13 | 13 13 Robot Miss Streak 2 | 1 2 Penetration Max . | . . Secondary Targets 2 | . 2 Max Gunslinging Chain 1 | . 1 Shots Hit Robots 62 | 29 33 Core Hits 25 | 10 15 Critical Kills . | . . Critical Parts Destroyed . | . . Critical Strikes 6 | 5 1 Burn 6 | 5 1 Melee Attacks . | . . Impact . | . . Slashing . | . . Piercing . | . . Sneak Attacks . | . . Combat Hostiles . | . . Follow-up Attacks . | . . Damage Inflicted 785 | 363 422 Guns 785 | 363 422 Cannons . | . . Explosions . | . . Melee . | . . Ramming . | . . Kinetic . | . . Thermal 785 | 363 422 Explosive . | . . Electromagnetic . | . . Impact . | . . Slashing . | . . Piercing . | . . Highest Corruption . | . . Average Corruption . | . . Corruption Purged . | . . Corruption Blocked . | . . Overload Shots . | . . Overflow Damage . | . . Projectiles . | . . Explosions . | . . Melee . | . . Knockbacks . | . . Impact . | . . Kinetic . | . . Secondary . | . . Self-Inflicted Damage . | . . Shots . | . . Rammed . | . . Targets Rammed . | . . Kicked . | . . Crushed . | . . Highest Temperature 195 | 195 195 Average Temperature 70 | 60 76 Received Heat Transfer 105 | . 105 Siege Activations . | . . Martial Activations . | . . Shielding Activations . | . . Robots Disrupted . | . . Combat Hostiles . | . . Robots Corrupted . | . . Combat Hostiles . | . . Parts Fried . | . . Impact Corruptions . | . . Robots Melted . | . . Combat Hostiles . | . . Parts Melted 5 | 3 2 Heat Transferred 2775 | 1443 1332 Parts Sabotaged . | . . Parts Stolen . | . . Parts Stripped . | . . Power Chain Reactions . | . . Alert | -11 -10 ------- Run | Yrd Mat Maximum Alert Level . | . . Low Security (%) 100 | 100 100 Level 1 . | . . Level 2 . | . . Level 3 . | . . Level 4 . | . . Level 5 . | . . High Security . | . . Max Security . | . . Peak Influence 156 | 10 156 Initial . | . . Average 10 | 1 15 Influence Increases 290 | 45 245 Destroy 0b10 Robot/C 180 | . 180 Destroy 0b10 Robot/NC 55 | 45 10 Destroy Leader 34 | . 34 Destroy Structure 6 | . 6 Lose Combat Pursuer 15 | . 15 Influence Decreases 152 | 45 107 Time Decay 142 | 45 97 Lost Part 10 | . 10 Squads Dispatched 3 | . 3 Investigation 3 | . 3 Extermination . | . . Reinforcement . | . . Assault . | . . Garrison . | . . Intercept . | . . Searches Triggered . | . . Construction Impeded . | . . Haulers Reinforced . | . . Active Scanning Responses . | . . Cargo Convoy Interrupts . | . . Stealth | -11 -10 --------- Run | Yrd Mat Distress Signals 1 | . 1 Communications Jammed . | . . Distress Signals . | . . Times Spotted 21 | . 21 Peak Tracking Total 8 | . 8 Tactical Retreats 1 | . 1 Traps | -11 -10 ------- Run | Yrd Mat Traps Triggered 2 | . 2 Indirectly . | . . Trap Hack Attempts . | . . Triggered . | . . Disarmed . | . . Reprogrammed . | . . Reused . | . . Traps Extracted . | . . Installed . | . . Triggered . | . . Machines | -11 -10 ---------- Run | Yrd Mat Machines Disabled . | . . Max in Single Turn . | . . Machines Repaired . | . . Machines Dismantled . | . . Machines Sabotaged . | . . Overloaded Fab Kills . | . . Hacking | -11 -10 --------- Run | Yrd Mat Machines Accessed 5 | . 5 Terminals 5 | . 5 Fabricators . | . . Repair Stations . | . . Recycling Units . | . . Scanalyzers . | . . Garrison Access . | . . Total Hacks 15 | . 15 Successful 5 | . 5 Failed 10 | . 10 Catastrophic 1 | . 1 Database Lockouts . | . . Manual 2 | . 2 Terminals 15 | . 15 Fabricators . | . . Repair Stations . | . . Recycling Units . | . . Scanalyzers . | . . Garrison Access . | . . Terminal Hacks 5 | . 5 Level Access Points 1 | . 1 Recall Investigation 1 | . 1 Hauler Manifests 1 | . 1 Zone Layout 2 | . 2 Fabricator Hacks . | . . Repair Station Hacks . | . . Recycling Unit Hacks . | . . Scanalyzer . | . . Garrison Access Hacks . | . . Unauthorized Hacks . | . . Terminals . | . . Fabricators . | . . Repair Stations . | . . Recycling Units . | . . Scanalyzers . | . . Garrison Access . | . . Data Cores Recovered . | . . Used . | . . Hacking Detections 4 | . 4 Full Trace Events 1 | . 1 Feedback Events . | . . Feedback Blocked . | . . Robot Schematics Acquired . | . . Robots Built . | . . Authchips . | . . Time . | . . Total Robot Build Rating . | . . Part Schematics Acquired . | . . Parts Built . | . . Authchips . | . . Time . | . . Total Part Build Rating . | . . Part Studies Acquired . | . . Parts Repaired . | . . Time . | . . Parts Recycled . | . . Recycled Matter . | . . Retrieved Matter . | . . Retrieved Components . | . . Parts Scanalyzed . | . . Part Schematics Acquired . | . . Parts Damaged . | . . Bothacking | -11 -10 ------------ Run | Yrd Mat Used RIF Installer . | . . Robots Hacked . | . . Non-combat . | . . Combat . | . . Robot Hacks Applied . | . . Relay Couplers Released . | . . Fabnet Peak Effective % . | . . Robots Rewired . | . . Allies Hacked . | . . Hacks Repelled . | . . Allies | -11 -10 -------- Run | Yrd Mat Total Allies . | . . Largest Group . | . . Highest-Rated Group . | . . Highest-Rated Ally . | . . Total Orders . | . . Ally Attacks . | . . Total Damage . | . . Kills . | . . Allies Corrupted . | . . Allies Melted . | . . Intel | -11 -10 ------- Run | Yrd Mat Active Infowar (turns) 784 | 188 596 Seismic 773 | 188 585 ECM 11 | . 11 Robot Analysis Total . | . . Derelict Logs Recovered . | . . Drone Launches . | . . Drone Recoveries . | . . Exploration | -11 -10 ------------- Run | Yrd Mat Turns Passed 912 | 317 595 Spaces Moved 477 | 133 344 Core 16 | 16 . Treads 9 | 9 . Legs 452 | 108 344 Wheels . | . . Hover . | . . Flight . | . . Fastest Speed 50 | 50 120 Average Speed 137 | 183 120 Slowest Speed 250 | 250 120 Overloaded Moves . | . . Propulsion Burnouts . | . . Robots Hopped . | . . Potential Cave-ins . | . . Cave-ins Triggered 1 | . 1 Exploration Rate (%) 39 | 7 71 Regions Visited 1 Branch Regions . Pre-discovered Areas . | . . Known Exits Taken . | . . Unknown Exits Taken 1 | 1 . Scrap Searched . | . . Spaces Dug 5 | . 5 Terrain Destroyed 5 | . 5 Melee . | . . Projectile 5 | . 5 AOE . | . . Terrain Rammed . | . . Walls Destroyed . | . . Machines Disabled . | . . Actions | -11 -10 --------- Run | Yrd Mat Total 628 | 165 463 Wait 79 | 2 77 Move 476 | 132 344 Hop . | . . Pick Up 8 | 3 5 Fast Attach 9 | 8 1 Attach . | . . Detach . | . . Swap 7 | . 7 Drop 2 | 1 1 Fire 47 | 19 28 Melee . | . . Ram . | . . Kick . | . . Crush . | . . Escape Stasis . | . . Rewire . | . . Trap . | . . Miscellaneous . | . . Route ------- -11/Scrapyard -10/Materials (discovered 4 exits: *Mat x3 / [*Min]) History --------- Turn | Location | Event 9 | -11/Scrapyard | Discovered new exit (range 16) 318 | -11/Scrapyard | Entered Materials 319 | -10/Materials | Build established: Mutant 378 | -10/Materials | Identified exit to Materials 863 | -10/Materials | Discovered new exit (range 14) 914 | -10/Materials | Crushed by falling debris 914 | -10/Materials | Smashed by cave-in Last Messages --------------- 00854_ Acquired 12 matter. 00858_ K-01 Serf collects debris. 00859_ Acquired 12 matter. 00863_ EXIT=FOUND 00866_ Triggered Alarm Trap. 00866_ An alarm sounds. 00866_ ALERT: Alarm triggered, dispatching investigation squad. 00877_ S-10 Pest destroyed. 00879_ K-01 Serf collects debris. 00880_ S-10 Pest destroyed. 00882_ K-01 Serf collects debris. 00884_ Acquired 19 matter. 00886_ K-01 Serf collects debris. 00891_ K-01 Serf cleans the Hadron Collector. 00891_ G-34 Mercenary destroyed. 00893_ K-01 Serf collects debris. 00914_ The unstable cave ceiling collapses. 00914_ Crushed by falling debris. 00914_ ECM Suite destroyed. 00914_ System corrupted by crushing effect (+2). Map ----- +----------------------------------------------------+ | # # * ** #????????????????????????????????? | | # # ** #??????????????????????????